bitfinex/quotes_BTCUSD_20250324
["timestamp","ask_amount","ask_price","bid_price","bid_amount"]
[1742831772411,0.0001697,88436.0,88435.0,1.33009608]
[1742831772817,0.0001697,88436.0,88435.0,1.32709608]
[1742831773249,0.0001697,88436.0,88435.0,1.33309608]
[1742831773473,0.0001697,88436.0,88435.0,1.33109608]
[1742831773707,0.0001697,88436.0,88435.0,1.33709608]
[1742831773934,0.0001697,88436.0,88435.0,1.20649608]
[1742831774112,0.0001697,88436.0,88435.0,0.55477744]
[1742831774113,0.2376287,88436.0,88435.0,0.55477744]
[1742831774319,0.2376287,88436.0,88435.0,0.42577744]
[1742831775203,0.2376287,88436.0,88435.0,0.41977744]
[1742831775631,0.2376287,88436.0,88435.0,0.006]
[1742831776301,0.74562719,88436.0,88435.0,0.006]
[1742831776534,0.74562719,88436.0,88429.0,0.0003394]
[1742831776535,0.537475,88430.0,88429.0,0.0003394]
[1742831777016,0.537475,88430.0,88410.0,0.0003394]
[1742831777017,0.01131,88411.0,88410.0,0.0003394]
[1742831777255,0.237526,88411.0,88410.0,0.0003394]
[1742831777452,0.3314034,88411.0,88410.0,0.0003394]
[1742831777929,0.3314034,88411.0,88408.0,0.0003396]
[1742831777930,0.237532,88409.0,88408.0,6e-07]
[1742831778153,0.35178964,88409.0,88408.0,6e-07]
[1742831778580,0.65178964,88409.0,88408.0,6e-07]
[1742831779771,0.66633049,88409.0,88408.0,6e-07]
[1742831780019,0.78058813,88409.0,88408.0,6e-07]
[1742831781396,0.90958813,88409.0,88408.0,6e-07]
[1742831787705,0.78058813,88409.0,88408.0,6e-07]
[1742831787914,0.90962813,88409.0,88408.0,6e-07]
[1742831791297,0.89508728,88409.0,88408.0,6e-07]
[1742831791553,0.78082964,88409.0,88408.0,6e-07]
[1742831793154,0.666572,88409.0,88408.0,6e-07]
[1742831793366,0.237591,88387.0,88383.0,0.0768006]
[1742831793563,0.237591,88387.0,88355.0,0.457716]
[1742831793564,0.237604,88382.0,88362.0,0.0486]
[1742831793765,0.237604,88382.0,88381.0,0.00046246]
[1742831794117,0.537604,88382.0,88381.0,0.00046246]
[1742831794988,0.54904459,88382.0,88381.0,0.00046246]
[1742831795173,0.66330223,88382.0,88381.0,0.00046246]
[1742831795573,0.54904459,88382.0,88381.0,0.00046246]
[1742831796465,0.011313,88391.0,88383.0,0.011314]
[1742831796701,0.011311,88406.0,88395.0,0.011312]
[1742831796905,0.23755,88402.0,88398.0,0.226247]
[1742831797121,0.011312,88399.0,88393.0,0.22626]
[1742831797326,0.011311,88403.0,88394.0,0.011312]
[1742831797685,0.011311,88403.0,88396.0,0.226252]
[1742831797686,0.226242,88401.0,88396.0,0.226252]
[1742831797928,0.226244,88400.0,88397.0,0.011312]
[1742831798129,0.226244,88400.0,88392.0,0.011313]
[1742831798130,0.226249,88398.0,88393.0,0.011313]
[1742831798302,0.011312,88401.0,88396.0,0.011312]
[1742831798513,0.226228,88407.0,88404.0,0.226231]
[1742831798709,0.226242,88401.0,88398.0,0.226247]
[1742831799053,0.237561,88398.0,88396.0,0.11425764]
[1742831799346,0.237566,88396.0,88395.0,0.0003396]
[1742831799646,0.226244,88400.0,88395.0,0.0003396]
[1742831799848,0.226245,88400.0,88396.0,0.226252]
[1742831800066,0.226243,88401.0,88398.0,0.226247]
[1742831800265,0.226234,88404.0,88401.0,0.226241]
[1742831800538,0.0001698,88409.0,88407.0,0.226225]
[1742831800760,0.0001698,88409.0,88408.0,0.226223]
[1742831800967,0.0001698,88409.0,88406.0,0.0781]
[1742831801172,0.237537,88407.0,88406.0,0.0781]
[1742831801358,0.226236,88403.0,88402.0,0.11385764]
[1742831801584,0.237547,88403.0,88402.0,0.11385764]
[1742831801825,0.237556,88400.0,88398.0,0.001]
[1742831802010,0.237556,88400.0,88395.0,0.1293796]
[1742831802011,0.226254,88396.0,88395.0,0.1293796]
[1742831802219,0.237566,88396.0,88395.0,0.12950306]
[1742831802770,0.237558,88399.0,88395.0,0.12950306]
[1742831802978,0.226242,88401.0,88396.0,0.237566]
[1742831803325,0.226231,88405.0,88401.0,0.22624]
[1742831803737,0.0114808,88409.0,88400.0,0.011312]
[1742831803738,0.0001698,88409.0,88406.0,0.012311]
[1742831803959,0.226226,88407.0,88406.0,0.001]
[1742831804158,0.237544,88405.0,88402.0,0.11425764]
[1742831804380,0.226234,88404.0,88402.0,0.11425764]
[1742831804577,0.011311,88405.0,88402.0,0.34349564]
[1742831804980,0.226231,88406.0,88403.0,0.226234]
[1742831805183,0.226231,88406.0,88403.0,0.34049164]
[1742831806447,0.226231,88405.0,88403.0,0.34049164]
[1742831806654,0.226231,88406.0,88403.0,0.34249164]
[1742831807061,0.226227,88407.0,88403.0,0.35480264]
[1742831807270,0.2377028,88409.0,88404.0,0.226234]
[1742831807478,0.2263908,88409.0,88404.0,0.011311]
[1742831807697,0.226227,88407.0,88403.0,0.35480264]
[1742831807900,0.226234,88404.0,88403.0,0.11625764]
[1742831808116,0.226231,88405.0,88403.0,0.11625764]
[1742831808295,0.226231,88405.0,88403.0,0.11725764]
[1742831808731,0.226231,88405.0,88403.0,0.11525764]
[1742831809188,0.2377028,88409.0,88408.0,0.237534]
[1742831809189,0.0001698,88409.0,88408.0,0.237534]
[1742831809415,0.0001698,88409.0,88408.0,0.43459164]
[1742831810051,0.0001698,88409.0,88408.0,0.34048064]
[1742831810262,0.011311,88408.0,88403.0,0.003]
[1742831810466,0.011311,88406.0,88403.0,0.11425764]
[1742831810667,0.011311,88406.0,88403.0,0.002]
[1742831811102,0.226228,88407.0,88403.0,0.002]
[1742831811103,0.237537,88407.0,88403.0,0.002]
[1742831811277,0.226229,88406.0,88402.0,0.2378876]
[1742831811478,0.226226,88407.0,88403.0,0.237547]
[1742831811680,0.0001698,88405.0,88403.0,0.238547]
[1742831811891,0.0001698,88405.0,88403.0,0.001]
[1742831811892,0.226234,88404.0,88403.0,0.001]
[1742831812124,0.226234,88404.0,88402.0,0.0003396]
[1742831812125,0.237547,88403.0,88402.0,0.0003396]
[1742831813698,0.237547,88403.0,88402.0,0.0013396]
[1742831814104,0.237547,88403.0,88402.0,0.0003396]
[1742831814507,0.319247,88403.0,88402.0,0.0023396]
[1742831814910,0.42359906,88403.0,88402.0,0.0023396]
[1742831815114,0.42359906,88403.0,88402.0,0.0003396]
[1742831815314,0.72359906,88403.0,88402.0,0.0033396]
[1742831815535,0.72559906,88403.0,88402.0,0.0003396]
[1742831817262,0.8398567,88403.0,88402.0,0.0003396]
[1742831819448,0.73550464,88403.0,88402.0,0.0003396]
[1742831819587,0.621247,88403.0,88402.0,0.0003396]
[1742831820866,0.73550464,88403.0,88402.0,0.0003396]
[1742831821672,0.73350464,88403.0,88402.0,0.0003396]
[1742831822061,0.537566,88396.0,88395.0,6.6e-07]
[1742831822229,0.81586449,88396.0,88395.0,6.6e-07]
[1742831822571,0.81586449,88396.0,88381.0,6.6e-07]
[1742831822572,0.537604,88382.0,88381.0,6.6e-07]
[1742831822784,0.79544249,88382.0,88381.0,6.6e-07]
[1742831823402,0.8038432,88382.0,88381.0,6.6e-07]
[1742831823609,0.91810084,88382.0,88381.0,6.6e-07]
[1742831823820,0.94810084,88382.0,88381.0,6.6e-07]
[1742831824022,1.03370084,88382.0,88381.0,6.6e-07]
[1742831824225,1.06770684,88382.0,88381.0,6.6e-07]
[1742831825167,1.11490684,88382.0,88381.0,6.6e-07]
[1742831825280,0.537663,88360.0,88359.0,0.0003392]
[1742831825479,0.90970064,88360.0,88359.0,0.0003392]
[1742831825889,0.92424149,88360.0,88359.0,0.0003392]
[1742831826896,0.93536028,88360.0,88359.0,0.0003392]
[1742831827119,0.93636028,88360.0,88359.0,0.0003392]
[1742831827673,0.93536028,88360.0,88359.0,0.0003392]
[1742831827873,0.66603943,88360.0,88359.0,0.0003392]
[1742831828076,0.68086179,88360.0,88359.0,0.0003392]
[1742831828288,0.55178179,88360.0,88359.0,0.0003392]
[1742831829263,0.226375,88349.0,88347.0,0.0690562]
[1742831829510,0.226375,88349.0,88347.0,0.06946817]
[1742831829743,0.226367,88353.0,88347.0,0.06946817]
[1742831829874,0.226371,88351.0,88348.0,0.0492]
[1742831830080,0.237691,88350.0,88348.0,0.0492]
[1742831830269,0.226371,88351.0,88348.0,0.0492]
[1742831830906,0.226372,88350.0,88348.0,0.0492]
[1742831831550,0.237692,88349.0,88348.0,0.0492]
[1742831831792,0.237695,88348.0,88347.0,0.06946817]
[1742831832243,0.226372,88350.0,88347.0,0.06946817]
[1742831832479,0.226372,88350.0,88348.0,0.226377]
[1742831832738,0.22637,88351.0,88348.0,0.227377]
[1742831833240,0.226363,88354.0,88348.0,0.012318]
[1742831833501,0.011317,88361.0,88356.0,0.226357]
[1742831833747,0.22635,88359.0,88355.0,0.237676]
[1742831834035,0.011315,88371.0,88365.0,0.011316]
[1742831834205,0.011315,88375.0,88369.0,0.011316]
[1742831834338,0.226321,88370.0,88365.0,0.11425764]
[1742831834566,0.226321,88370.0,88365.0,0.24337764]
[1742831834975,0.226331,88366.0,88365.0,0.24337764]
[1742831835175,0.237643,88368.0,88365.0,0.24337764]
[1742831835176,0.011316,88368.0,88365.0,0.24337764]
[1742831835380,0.011316,88366.0,88365.0,0.24337764]
[1742831835579,0.237647,88366.0,88365.0,0.24337764]
[1742831836004,0.237647,88366.0,88365.0,0.11425764]
[1742831836205,0.237671,88357.0,88356.0,0.41377744]
[1742831837887,0.237671,88357.0,88356.0,0.41577744]
[1742831838088,0.237671,88357.0,88356.0,0.41877744]
[1742831839109,0.237671,88357.0,88356.0,0.41677744]
[1742831839366,0.238671,88357.0,88356.0,0.41677744]
[1742831839563,0.238671,88357.0,88356.0,0.41377744]
[1742831840023,0.237671,88357.0,88356.0,0.41477744]
[1742831840228,0.237671,88357.0,88356.0,0.41377744]
[1742831840622,0.237671,88357.0,88356.0,0.41577744]
[1742831840983,0.237671,88357.0,88356.0,0.41677744]
[1742831841993,0.237671,88357.0,88356.0,0.003]
[1742831861663,0.2378408,88357.0,88356.0,0.003]
[1742831873451,0.0001698,88357.0,88356.0,0.003]
[1742831873690,0.0001698,88357.0,88356.0,0.369754]
[1742831875152,0.0001698,88357.0,88356.0,0.39276799]
[1742831875736,0.0001698,88357.0,88356.0,0.50702563]
[1742831876138,0.2378408,88357.0,88356.0,0.02402671]
[1742831876950,0.2378408,88357.0,88356.0,0.02202671]
[1742831877350,0.0001698,88357.0,88356.0,0.003]
[1742831877735,0.0001698,88357.0,88351.0,0.226368]
[1742831877903,0.0001698,88357.0,88352.0,0.226365]
[1742831878110,0.0001698,88357.0,88356.0,0.240674]
[1742831878536,0.0001698,88357.0,88356.0,0.237674]
[1742831879018,0.0001698,88357.0,88356.0,0.239674]
[1742831879521,0.0001698,88357.0,88356.0,0.237674]
[1742831879719,0.0001698,88357.0,88356.0,0.239674]
[1742831880229,0.0001698,88357.0,88356.0,0.35693164]
[1742831880456,0.0001698,88357.0,88356.0,0.43263164]
[1742831884393,0.0001698,88357.0,88356.0,0.89570908]
[1742831884597,8e-07,88357.0,88356.0,1.26137699]
[1742831885003,8e-07,88357.0,88356.0,1.25637699]
[1742831885206,8e-07,88357.0,88356.0,1.37091614]
[1742831885549,8e-07,88357.0,88356.0,1.36791614]
[1742831885956,8e-07,88357.0,88356.0,1.38845699]
[1742831886162,8e-07,88357.0,88356.0,1.38645699]
[1742831886525,8e-07,88357.0,88356.0,1.36248364]
[1742831886681,8e-07,88357.0,88356.0,1.39739881]
[1742831887293,8e-07,88357.0,88356.0,1.36248364]
[1742831889189,8e-07,88357.0,88356.0,2.06248364]
[1742831889391,8e-07,88357.0,88356.0,1.91386279]
[1742831889506,8e-07,88357.0,88356.0,2.04290279]
[1742831890545,8e-07,88357.0,88356.0,1.34290279]
[1742831891364,8e-07,88357.0,88356.0,1.04290279]
[1742831892980,8e-07,88357.0,88356.0,1.60215217]
[1742831894906,8e-07,88357.0,88356.0,1.46195846]
[1742831895132,8e-07,88357.0,88356.0,1.59099846]
[1742831896437,8e-07,88357.0,88356.0,1.60226605]
[1742831896647,8e-07,88357.0,88356.0,1.58137667]
[1742831897971,8e-07,88357.0,88356.0,1.88137667]
[1742831898272,8e-07,88357.0,88356.0,1.87010908]
[1742831898816,8e-07,88357.0,88356.0,1.31606908]
[1742831899037,8e-07,88357.0,88356.0,1.44510908]
[1742831899846,8e-07,88357.0,88356.0,1.43910908]
[1742831900180,8e-07,88357.0,88356.0,1.43810908]
[1742831900593,8e-07,88357.0,88356.0,1.44410908]
[1742831900966,8e-07,88357.0,88356.0,1.43910908]
[1742831901669,8e-07,88357.0,88356.0,1.42779208]
[1742831902211,8e-07,88357.0,88356.0,1.43310908]
[1742831902613,8e-07,88357.0,88356.0,1.46504201]
[1742831902976,8e-07,88357.0,88356.0,1.45372501]
[1742831903997,8e-07,88357.0,88356.0,1.43279208]
[1742831904411,0.0113178,88357.0,88356.0,0.54936]
[1742831904611,8e-07,88357.0,88356.0,0.011]
[1742831905190,8e-07,88357.0,88356.0,0.237357]
[1742831905392,8e-07,88357.0,88356.0,0.248674]
[1742831905587,8e-07,88357.0,88356.0,0.243674]
[1742831905798,8e-07,88357.0,88356.0,0.235357]
[1742831906224,8e-07,88357.0,88356.0,0.229357]
[1742831906446,8e-07,88357.0,88356.0,0.240674]
[1742831907377,8e-07,88357.0,88356.0,0.2410136]
[1742831907974,8e-07,88357.0,88356.0,0.2440136]
[1742831908170,8e-07,88357.0,88356.0,0.2326966]
[1742831909291,8e-07,88357.0,88356.0,0.2440136]
[1742831909492,8e-07,88357.0,88356.0,0.35827124]
[1742831911056,8e-07,88357.0,88356.0,0.48627124]
[1742831912103,8e-07,88357.0,88356.0,0.61531124]
[1742831912265,8e-07,88357.0,88356.0,0.63624417]
[1742831912679,8e-07,88357.0,88356.0,0.63324417]
[1742831912874,8e-07,88357.0,88356.0,0.63524417]
[1742831913288,8e-07,88357.0,88356.0,0.64024417]
[1742831915408,8e-07,88357.0,88356.0,1.05402161]
[1742831918054,6e-07,88370.0,88369.0,0.537639]
[1742831918190,6e-07,88370.0,88369.0,0.92317749]
[1742831918396,6e-07,88370.0,88369.0,0.91817749]
[1742831918850,6e-07,88370.0,88369.0,0.96167091]
[1742831919360,6e-07,88370.0,88369.0,0.97067091]
[1742831919557,6e-07,88370.0,88369.0,0.96936951]
[1742831919987,6e-07,88370.0,88369.0,0.96536951]
[1742831920185,6e-07,88370.0,88369.0,0.97136951]
[1742831920702,6e-07,88370.0,88369.0,0.97736951]
[1742831920911,6e-07,88370.0,88369.0,0.97136951]
[1742831921121,6e-07,88370.0,88369.0,0.9935813]
[1742831921332,6e-07,88370.0,88369.0,1.37343687]
[1742831921576,6e-07,88370.0,88369.0,1.37843687]
[1742831923944,6e-07,88370.0,88369.0,1.38966413]
[1742831924359,6e-07,88370.0,88369.0,1.38466413]
[1742831924797,6e-07,88370.0,88369.0,1.38966413]
[1742831925887,6e-07,88370.0,88369.0,1.38466413]
[1742831926523,6e-07,88370.0,88369.0,1.92290413]
[1742831932780,6e-07,88370.0,88369.0,1.92324373]
[1742831934652,6e-07,88370.0,88369.0,1.92824373]
[1742831935170,0.0001698,88403.0,88402.0,0.23755]
[1742831935374,0.0001698,88403.0,88402.0,0.89454448]
[1742831936690,0.00029313,88403.0,88402.0,0.89554448]
[1742831936869,0.00029313,88403.0,88402.0,0.90054448]
[1742831937230,0.00029313,88403.0,88402.0,0.89954448]
[1742831937469,0.00029313,88403.0,88402.0,0.90454448]
[1742831938704,0.00029313,88403.0,88402.0,0.91312779]
[1742831938907,0.00029313,88403.0,88402.0,0.92434756]
[1742831939409,0.00029313,88403.0,88402.0,0.9474842]
[1742831941108,0.00029313,88403.0,88402.0,0.93890089]
[1742831942895,0.00029313,88403.0,88402.0,0.94738352]
[1742831945200,0.00029313,88403.0,88402.0,0.94238352]
[1742831945373,0.00029313,88403.0,88402.0,0.95692437]
[1742831945578,0.00029313,88403.0,88402.0,0.96292437]
[1742831945779,0.00029313,88403.0,88402.0,0.95792437]
[1742831946172,0.00029313,88403.0,88402.0,0.96292437]
[1742831947773,0.0001697,88436.0,88407.0,0.3496]
[1742831947969,0.0001697,88436.0,88435.0,0.237461]
[1742831948202,0.0002931,88436.0,88435.0,0.48063864]
[1742831948376,0.0761931,88436.0,88435.0,0.48063864]
[1742831948580,0.1249931,88436.0,88435.0,0.48063864]
[1742831949549,0.1249931,88436.0,88432.0,0.011308]
[1742831949550,0.0816,88435.0,88432.0,0.011308]
[1742831949749,0.0816,88435.0,88430.0,0.011308]
[1742831949950,0.0816,88435.0,88429.0,0.237478]
[1742831950223,0.226159,88433.0,88429.0,0.011308]
[1742831950403,0.237466,88434.0,88430.0,0.226165]
[1742831950611,0.226161,88433.0,88429.0,0.226167]
[1742831950818,0.0816,88435.0,88430.0,0.011308]
[1742831951032,0.0816,88435.0,88434.0,0.237464]
[1742831951234,0.0816,88435.0,88434.0,0.35172164]
[1742831951440,0.0816,88435.0,88434.0,0.11425764]
[1742831952255,0.0816,88435.0,88434.0,0.34041464]
[1742831952456,0.0816,88435.0,88434.0,0.11425764]
[1742831953299,0.307754,88435.0,88434.0,0.11425764]
[1742831953483,0.307754,88435.0,88434.0,0.11625764]
[1742831953701,0.0816,88435.0,88434.0,0.12756464]
[1742831953871,0.307754,88435.0,88434.0,0.11625764]
[1742831954098,0.0816,88435.0,88434.0,0.11625764]
[1742831954616,0.2752461,88436.0,88434.0,0.11625764]
[1742831954827,0.2752461,88436.0,88435.0,0.11425764]
[1742831955266,0.2865531,88436.0,88435.0,0.11425764]
[1742831956418,0.2865531,88436.0,88435.0,0.11625764]
[1742831959393,0.0490931,88436.0,88435.0,0.11625764]
[1742831959806,0.0490931,88436.0,88435.0,0.35371864]
[1742831960004,0.0002931,88436.0,88435.0,0.35371864]
[1742831960633,0.0002931,88436.0,88435.0,0.34241164]
[1742831960809,0.0002931,88436.0,88435.0,0.35371864]
[1742831961584,0.0002931,88436.0,88435.0,0.34241164]
[1742831961742,0.0002931,88436.0,88435.0,0.11625764]
[1742831961907,0.0002931,88436.0,88435.0,0.34241164]
[1742831962116,0.0002931,88436.0,88435.0,0.48259864]
[1742831963543,0.0002931,88436.0,88435.0,0.56329864]
[1742831963747,0.0002931,88436.0,88435.0,0.48259864]
[1742831964952,0.0002931,88436.0,88435.0,0.48359864]
[1742831965521,0.0002931,88436.0,88435.0,0.48059864]
[1742831965728,0.0002931,88436.0,88435.0,0.48859864]
[1742831966130,0.0002931,88436.0,88435.0,0.49729476]
[1742831967078,0.0002931,88436.0,88435.0,0.49229476]
[1742831967488,0.0002931,88436.0,88435.0,0.49729476]
[1742831967823,0.0002931,88436.0,88435.0,0.49429476]
[1742831968486,0.0002931,88436.0,88435.0,0.49829476]
[1742831972893,0.0002931,88436.0,88435.0,0.37269012]
[1742831973067,0.0002931,88436.0,88435.0,0.363994]
[1742831973268,0.0002931,88436.0,88435.0,0.375301]
[1742831973922,0.0002931,88436.0,88435.0,0.48455864]
[1742831974383,0.0002931,88436.0,88435.0,0.48855864]
[1742831974939,0.0002931,88436.0,88435.0,0.48455864]
[1742831975221,0.0002931,88436.0,88435.0,0.48755864]
[1742831982819,0.0002931,88436.0,88435.0,0.90133548]
[1742831984562,0.0002931,88436.0,88435.0,1.24923548]
[1742831985392,0.0002931,88436.0,88435.0,1.24623548]
[1742831985541,0.0002931,88436.0,88435.0,1.24223548]
[1742831985746,0.0002931,88436.0,88435.0,1.24723548]
[1742831985923,0.0002931,88436.0,88435.0,1.25323548]
[1742831986326,0.0002931,88436.0,88435.0,0.90533548]
[1742831986542,0.0002931,88436.0,88435.0,0.66783448]
[1742831986862,0.0002931,88436.0,88435.0,0.90529548]
[1742831987579,0.0002931,88436.0,88435.0,0.90029548]
[1742831987971,0.0002931,88436.0,88435.0,0.90329548]
[1742831988383,0.0002931,88436.0,88435.0,0.90029548]
[1742831988752,0.0002931,88436.0,88435.0,0.90329548]
[1742831988957,0.0002931,88436.0,88435.0,0.55157684]
[1742831989162,0.0002931,88436.0,88435.0,0.41677684]
[1742831989388,0.2377521,88436.0,88435.0,0.41377684]
[1742831989586,0.0002931,88436.0,88435.0,0.75818848]
[1742831989834,0.0002931,88436.0,88435.0,0.76549548]
[1742831990212,0.0002931,88436.0,88435.0,0.76949548]
[1742831991877,0.0002931,88436.0,88435.0,0.76849548]
[1742831992280,0.0002931,88436.0,88435.0,0.77049548]
[1742831992481,0.0002931,88436.0,88435.0,0.76549548]
[1742831992887,0.0002931,88436.0,88435.0,0.76849548]
[1742831994010,0.2377521,88436.0,88435.0,0.41677684]
[1742831994187,0.3164521,88436.0,88435.0,0.003]
[1742831994753,0.3051451,88436.0,88435.0,0.003]
[1742831995647,0.3051451,88436.0,88435.0,0.240461]
[1742831995648,0.0789931,88436.0,88435.0,0.240461]
[1742831995849,0.2729937,88447.0,88445.0,0.237435]
[1742831995850,0.0001697,88447.0,88445.0,0.237435]
[1742831996274,0.00023028,88446.0,88445.0,0.237435]
[1742831997275,0.00023028,88446.0,88445.0,0.238435]
[1742831999808,0.01153628,88446.0,88445.0,0.001]
[1742831999979,0.00023028,88446.0,88445.0,0.227129]
[1742832001007,0.0001696,88449.0,88445.0,0.227129]
[1742832001230,0.0005808,88449.0,88445.0,0.001]
[1742832001848,0.2267008,88449.0,88446.0,0.226126]
[1742832002469,0.0005808,88449.0,88447.0,0.226122]
[1742832003632,0.0005808,88449.0,88448.0,0.226121]
[1742832004356,0.0005808,88449.0,88448.0,0.237427]
[1742832005097,0.0005808,88449.0,88448.0,0.312627]
[1742832005322,0.0005808,88449.0,88448.0,0.35168464]
[1742832006101,0.0005808,88449.0,88448.0,0.48048464]
[1742832006510,0.0005808,88449.0,88448.0,0.55648464]
[1742832006711,2.3e-07,88460.0,88459.0,0.011304]
[1742832006894,2.3e-07,88460.0,88459.0,1.17108164]
[1742832007095,2.3e-07,88460.0,88459.0,0.74228164]
[1742832007411,2.3e-07,88460.0,88459.0,0.87108164]
[1742832008373,2.3e-07,88460.0,88459.0,1.20844793]
[1742832008577,2.3e-07,88460.0,88459.0,1.26834793]
[1742832008798,2.3e-07,88460.0,88459.0,1.30323241]
[1742832009003,2.3e-07,88460.0,88459.0,1.17443241]
[1742832009205,7e-05,88476.0,88459.0,1.30323241]
[1742832009406,4e-05,88480.0,88479.0,0.318444]
[1742832009696,0.00016329,88480.0,88479.0,0.56150164]
[1742832009900,0.00016329,88480.0,88479.0,0.11425764]
[1742832010102,0.00016329,88480.0,88479.0,0.26535593]
[1742832010758,0.00016329,88480.0,88479.0,0.14785793]
[1742832010958,0.00016329,88480.0,88479.0,0.26761611]
[1742832011162,0.00016329,88480.0,88479.0,0.27665793]
[1742832011352,0.00016329,88480.0,88479.0,0.28265793]
[1742832011932,0.00016329,88480.0,88479.0,0.14255593]
[1742832012107,0.01146429,88480.0,88479.0,0.006]
[1742832012950,0.00016329,88480.0,88479.0,0.12025764]
[1742832013132,0.00016329,88480.0,88479.0,0.48862207]
[1742832013331,0.00016329,88480.0,88479.0,0.48636164]
[1742832013759,0.00016329,88480.0,88479.0,0.49236164]
[1742832014183,0.00016329,88480.0,88479.0,0.48636164]
[1742832014612,0.00016329,88480.0,88479.0,0.12025764]
[1742832014763,0.00016329,88480.0,88479.0,0.011]
[1742832014764,0.01136779,88480.0,88479.0,0.011]
[1742832015434,0.01136779,88480.0,88479.0,0.005]
[1742832015640,0.226078,88465.0,88463.0,0.02219193]
[1742832015843,0.226078,88465.0,88464.0,0.11425764]
[1742832015997,0.011304,88464.0,88463.0,0.02219193]
[1742832016440,0.237387,88463.0,88461.0,0.12876]
[1742832016643,0.237387,88463.0,88462.0,0.11425764]
[1742832016849,0.226083,88463.0,88462.0,0.11425764]
[1742832017796,0.226083,88463.0,88452.0,0.10051431]
[1742832017797,0.237394,88460.0,88452.0,0.22927431]
[1742832017997,0.237413,88453.0,88452.0,0.10051431]
[1742832018443,0.24074967,88453.0,88452.0,0.10051431]
[1742832018903,0.237432,88446.0,88445.0,0.0003396]
[1742832019411,0.24072492,88446.0,88445.0,0.00039609]
[1742832020326,0.22941892,88446.0,88445.0,0.11465373]
[1742832020777,0.22941892,88446.0,88445.0,0.11565373]
[1742832022315,0.22941892,88446.0,88445.0,0.19725373]
[1742832022565,0.22941892,88446.0,88445.0,0.21055973]
[1742832022566,0.00329292,88446.0,88445.0,0.21055973]
[1742832022804,0.00329292,88446.0,88445.0,0.19925373]
[1742832023038,0.226125,88447.0,88445.0,0.11765373]
[1742832023242,0.00331898,88446.0,88445.0,0.13215609]
[1742832023447,0.00331898,88446.0,88445.0,0.11665373]
[1742832023623,0.226115,88451.0,88445.0,0.11665373]
[1742832023624,0.226117,88450.0,88445.0,0.24541373]
[1742832023833,0.00331898,88446.0,88445.0,0.13115609]
[1742832024061,0.00332022,88446.0,88445.0,0.24741373]
[1742832024273,0.00332022,88446.0,88445.0,0.50790575]
[1742832024479,0.22609,88461.0,88455.0,0.226102]
[1742832024700,0.00331899,88460.0,88456.0,0.34035664]
[1742832024908,0.00331899,88460.0,88459.0,0.011304]
[1742832025148,0.226076,88466.0,88462.0,0.011304]
[1742832025338,0.011302,88474.0,88463.0,0.11425764]
[1742832025572,0.226078,88465.0,88463.0,0.11425764]
[1742832025999,0.011302,88474.0,88463.0,0.11425764]
[1742832026172,0.011302,88476.0,88464.0,0.00226053]
[1742832026377,0.226063,88471.0,88465.0,0.11425764]
[1742832026582,0.226072,88468.0,88465.0,0.11425764]
[1742832026753,0.226075,88466.0,88465.0,0.11425764]
[1742832026959,0.237378,88466.0,88465.0,0.11425764]
[1742832027125,0.226075,88466.0,88465.0,0.11425764]
[1742832027322,0.0113,88488.0,88478.0,0.226044]
[1742832027523,0.00154138,88500.0,88478.0,0.226044]
[1742832027524,0.002,88489.0,88479.0,0.35160164]
[1742832029406,0.002,88489.0,88479.0,0.35560164]
[1742832030406,0.0113,88488.0,88479.0,0.35560164]
[1742832030628,0.002,88489.0,88479.0,0.35560164]
[1742832030836,0.002,88489.0,88479.0,0.35760164]
[1742832032194,0.002,88489.0,88479.0,0.35360164]
[1742832032446,0.002,88489.0,88479.0,0.35660164]
[1742832032962,0.002,88489.0,88479.0,0.35560164]
[1742832033078,0.002,88489.0,88479.0,0.36160164]
[1742832034143,0.0133,88489.0,88479.0,0.36160164]
[1742832034381,0.0113,88488.0,88479.0,0.13555964]
[1742832034542,0.23732,88488.0,88479.0,0.13555964]
[1742832034918,0.011301,88485.0,88479.0,0.12425764]
[1742832035118,0.237328,88485.0,88479.0,0.35029964]
[1742832035290,0.22603,88484.0,88479.0,0.247344]
[1742832035559,0.00361999,88480.0,88479.0,0.247344]
[1742832035715,0.0001698,88480.0,88479.0,0.247344]
[1742832035922,0.00361999,88480.0,88479.0,0.247344]
[1742832036126,0.237352,88476.0,88475.0,0.12908]
[1742832036328,0.226049,88477.0,88475.0,0.12908]
[1742832036525,0.00343527,88476.0,88475.0,0.355132]
[1742832036728,0.00343527,88476.0,88475.0,0.366434]
[1742832036909,0.2262108,88480.0,88475.0,0.366434]
[1742832037086,0.22948052,88479.0,88475.0,0.366434]
[1742832037384,0.226046,88478.0,88475.0,0.355131]
[1742832037823,0.226048,88477.0,88475.0,0.12908]
[1742832038029,0.237352,88476.0,88475.0,0.001]
[1742832038249,0.22605,88476.0,88475.0,0.001]
[1742832038458,0.00339464,88476.0,88475.0,0.001]
[1742832038841,0.22944464,88476.0,88475.0,0.001]
[1742832039072,0.00339464,88476.0,88475.0,0.004]
[1742832039445,0.22944464,88476.0,88475.0,0.003]
[1742832039860,0.24074664,88476.0,88475.0,0.004]
[1742832040089,0.24074664,88476.0,88475.0,0.001]
[1742832040302,0.226064,88471.0,88468.0,0.226069]
[1742832040679,0.22946244,88470.0,88467.0,0.22607]
[1742832040879,0.00339644,88470.0,88468.0,0.226068]
[1742832041088,0.01469944,88470.0,88466.0,5.649e-05]
[1742832041300,0.011303,88472.0,88466.0,0.11431413]
[1742832041510,0.226064,88471.0,88468.0,0.226068]
[1742832041714,0.22946244,88470.0,88468.0,0.22607]
[1742832042044,0.00339644,88470.0,88469.0,0.226067]
[1742832042424,0.237364,88472.0,88469.0,0.226067]
[1742832042597,0.00339644,88470.0,88469.0,0.226067]
[1742832042829,0.237364,88472.0,88469.0,0.226067]
[1742832042996,0.00339644,88470.0,88469.0,0.226067]
[1742832043195,0.226063,88471.0,88468.0,0.23007]
[1742832043526,0.011302,88473.0,88469.0,0.226067]
[1742832043527,0.00338285,88470.0,88469.0,0.226067]
[1742832043683,0.011302,88473.0,88469.0,0.233067]
[1742832043876,0.00338161,88472.0,88469.0,0.233067]
[1742832044122,0.22944261,88472.0,88469.0,0.233067]
[1742832044330,0.22944261,88472.0,88469.0,0.230067]
[1742832044585,0.226064,88471.0,88469.0,0.004]
[1742832044780,0.226065,88470.0,88469.0,0.004]
[1742832045184,0.22944785,88470.0,88469.0,0.004]